fUSD/lending_fUSD_20240414
["ID","MTS","AMOUNT","RATE_DAILY","PERIOD"]
[322583673,1713084656119,-3147.97,0.00049315,120]
[322583674,1713084656128,-500.0,0.00049315,120]
[322583675,1713084656137,-2233.67,0.00049315,120]
[322583676,1713084656147,-500.0,0.00049315,120]
[322583677,1713084656156,-500.0,0.00049315,120]
[322583678,1713084656165,-500.0,0.00049315,120]
[322583679,1713084656175,-500.0,0.00049315,120]
[322583680,1713084656184,-6398.5,0.00049315,120]
[322583681,1713084656193,-500.0,0.00049315,120]
[322583682,1713084656202,-500.0,0.00049315,120]
[322583683,1713084656212,-500.0,0.00049315,120]
[322583684,1713084656221,-500.0,0.00049315,120]
[322583685,1713084656230,-500.0,0.00049315,120]
[322583686,1713084656239,-500.0,0.00049315,120]
[322583687,1713084656249,-6602.79,0.00049315,120]
[322583688,1713084656257,-500.0,0.00049315,120]
[322583689,1713084656266,-2745.69,0.00049315,120]
[322583690,1713084656276,-531.67,0.00049315,120]
[322583691,1713084656285,-500.0,0.00049315,120]
[322583692,1713084656294,-500.0,0.00049315,120]
[322583693,1713084656303,-926.51,0.00049315,120]
[322583694,1713084656313,-9721.5,0.00049315,120]
[322583695,1713084656322,-4433.61,0.00049315,120]
[322583696,1713084656332,-500.0,0.00049315,120]
[322583697,1713084656341,-500.0,0.00049315,120]
[322583698,1713084656350,-504.56348628,0.00049315,120]
[322583699,1713084656360,-10667.4,0.00049315,120]
[322583700,1713084656369,-500.0,0.00049315,120]
[322583701,1713084656378,-14925.53,0.00049315,120]
[322583702,1713084656388,-1015.04,0.00049315,120]
[322583703,1713084656397,-500.0,0.00049315,120]
[322583704,1713084656406,-500.0,0.00049315,120]
[322583705,1713084656415,-300.0,0.00049315,7]
[322583706,1713084656424,-500.0,0.00049315,120]
[322583707,1713084656433,-500.0,0.00049315,120]
[322583708,1713084656620,-731.74,0.00049315,120]
[322583709,1713084656631,-500.0,0.00049315,120]
[322583710,1713084656640,-500.0,0.00049315,120]
[322583711,1713084656649,-500.0,0.00049315,120]
[322583712,1713084656659,-205.797158,0.00049315,120]
[322583713,1713084656670,-940.73,0.00049315,120]
[322583714,1713084656680,-1381.7,0.00049315,120]
[322583715,1713084656689,-500.0,0.00049315,120]
[322583716,1713084656698,-500.0,0.00049315,120]
[322583717,1713084656707,-5052.74,0.00049315,120]
[322583718,1713084656716,-1117.53,0.00049315,120]
[322583719,1713084656725,-500.0,0.00049315,2]
[322583720,1713084656735,-500.0,0.00049315,120]
[322583721,1713084656744,-7680.33,0.00049315,120]
[322583722,1713084656754,-743.01,0.00049315,120]
[322583723,1713084656763,-1095.34,0.00049315,120]
[322583724,1713084656772,-500.0,0.00049315,120]
[322583725,1713084656782,-1919.91,0.00049315,120]
[322583726,1713084656792,-728.67,0.00049315,120]
[322583727,1713084656802,-1780.59,0.00049315,120]
[322583728,1713084656811,-3438.15,0.00049315,120]
[322583729,1713084656821,-500.0,0.00049315,120]
[322583730,1713084656830,-8529.94,0.00049315,120]
[322583731,1713084656840,-500.0,0.00049315,120]
[322583732,1713084656849,-619.77,0.00049315,120]
[322583733,1713084656858,-500.0,0.00049315,120]
[322583734,1713084656867,-7327.03,0.00049315,120]
[322583735,1713084656876,-500.0,0.00049315,120]
[322583736,1713084656888,-1004.67,0.00049315,120]
[322583737,1713084656897,-500.0,0.00049315,120]
[322583738,1713084656906,-500.0,0.00049315,120]
[322583739,1713084656916,-506.50161964,0.00049315,120]
[322583740,1713084656925,-1279.38,0.00049315,120]
[322583741,1713084656935,-500.0,0.00049315,120]
[322583742,1713084656944,-500.0,0.00049315,120]
[322583743,1713084656953,-1215.54,0.00049315,120]
[322583744,1713084656962,-258.28666118,0.00049315,2]
[322583745,1713084656971,-829.96,0.00049315,120]
[322583746,1713084656984,-500.0,0.00049315,120]
[322583747,1713084656994,-1964.88,0.00049315,120]
[322583748,1713084657004,-500.0,0.00049315,120]
[322583749,1713084657014,-1939.27,0.00049315,120]
[322583750,1713084657023,-1610.32,0.00049315,120]
[322583751,1713084657032,-500.0,0.00049315,2]
[322583752,1713084657042,-500.0,0.00049315,120]
[322583753,1713084657052,-600.0,0.00049315,120]
[322583754,1713084657061,-500.0,0.00049315,120]
[322583755,1713084657070,-7456.14,0.00049315,120]
[322583756,1713084657079,-500.0,0.00049315,120]
[322583757,1713084657089,-152.28,0.00049315,2]
[322583758,1713084657099,-539.0,0.00049322,30]
[322583759,1713084657108,-591.0,0.00049322,30]
[322583760,1713084657117,-152.45161625,0.00049354,30]
[322583761,1713084657126,-333.33333,0.0004937,46]
[322583762,1713084657136,-500.0,0.00049386,90]
[322583763,1713084657145,-600.0,0.00049386,90]
[322583764,1713084657154,-185.0180381,0.0004939,30]
[322583765,1713084657164,-153.57672703,0.00049397,30]
[322583766,1713084657173,-151.0,0.00049397,120]
[322583767,1713084657182,-3000.0,0.00049452,120]
[322583768,1713084657191,-185.0180381,0.00049453,30]
[322583769,1713084657200,-796.51340549,0.00049489,30]
[322583770,1713084657210,-796.51340549,0.00049489,30]
[322583771,1713084657219,-796.51340549,0.00049489,30]
[322583772,1713084657228,-796.51340549,0.00049489,30]
[322583773,1713084657237,-796.51340549,0.00049489,30]
[322583774,1713084657246,-796.51340549,0.00049489,30]
[322583775,1713084657255,-796.51340549,0.00049489,30]
[322583776,1713084657264,-796.51340549,0.00049489,30]
[322583777,1713084657274,-796.51340549,0.00049489,30]
[322583778,1713084657283,-796.51340549,0.00049489,30]
[322583779,1713084657292,-796.51340549,0.00049489,30]
[322583780,1713084657301,-796.51340549,0.00049489,30]
[322583781,1713084657310,-796.51340549,0.00049489,30]
[322583782,1713084657320,-796.51340549,0.00049489,30]
[322583783,1713084657329,-796.51340549,0.00049489,30]
[322583784,1713084657339,-796.51340549,0.00049489,30]
[322583785,1713084657348,-796.51340549,0.00049489,30]
[322583786,1713084657357,-796.51340549,0.00049489,30]
[322583787,1713084657367,-796.51340549,0.00049489,30]
[322583788,1713084657376,-797.01,0.00049489,30]
[322583789,1713084657385,-3186.12862197,0.00049489,30]
[322583790,1713084657395,-3186.12862197,0.00049489,30]
[322583791,1713084657404,-3186.12862197,0.00049489,30]
[322583792,1713084657413,-404.49902647,0.00049489,30]
[322583793,1713084657423,-404.49902647,0.00049489,30]
[322583794,1713084657432,-404.49902647,0.00049489,30]
[322583795,1713084657441,-404.49902647,0.00049489,30]
[322583796,1713084657450,-404.49902647,0.00049489,30]
[322583797,1713084657459,-404.49902647,0.00049489,30]
[322583798,1713084657468,-404.49902647,0.00049489,30]
[322583799,1713084657477,-404.49902647,0.00049489,30]
[322583800,1713084657487,-404.49902647,0.00049489,30]
[322583801,1713084657497,-404.49902647,0.00049489,30]
[322583802,1713084657506,-404.49902647,0.00049489,30]
[322583803,1713084657515,-404.49902647,0.00049489,30]
[322583804,1713084657524,-404.49902647,0.00049489,30]
[322583805,1713084657533,-404.49902647,0.00049489,30]
[322583806,1713084657542,-404.49902647,0.00049489,30]
[322583807,1713084657551,-404.49902647,0.00049489,30]
[322583808,1713084657560,-404.49902647,0.00049489,30]
[322583809,1713084657570,-404.49902647,0.00049489,30]
[322583810,1713084657578,-404.49902647,0.00049489,30]
[322583811,1713084657588,-404.99,0.00049489,30]
[322583812,1713084657597,-1618.07110588,0.00049489,30]
[322583813,1713084657607,-1618.07110588,0.00049489,30]
[322583814,1713084657616,-1618.07110588,0.00049489,30]
[322583815,1713084657625,-153.13962035,0.00049489,30]
[322583816,1713084657634,-153.13962035,0.00049489,30]
[322583817,1713084657644,-153.13962035,0.00049489,30]
[322583818,1713084657653,-153.13962035,0.00049489,30]
[322583819,1713084657662,-153.13962035,0.00049489,30]
[322583820,1713084657672,-153.13962035,0.00049489,30]
[322583821,1713084657681,-153.13962035,0.00049489,30]
[322583822,1713084657690,-153.13962035,0.00049489,30]
[322583823,1713084657700,-153.13962035,0.00049489,30]
[322583824,1713084657709,-153.63,0.00049489,30]
[322583825,1713084657719,-306.35424071,0.00049489,30]
[322583826,1713084657728,-306.35424071,0.00049489,30]
[322583827,1713084657737,-306.35424071,0.00049489,30]
[322583828,1713084657746,-373.06851059,0.00049489,30]
[322583829,1713084657755,-373.06851059,0.00049489,30]
[322583830,1713084657781,-373.06851059,0.00049489,30]
[322583831,1713084657798,-373.06851059,0.00049489,30]
[322583832,1713084657817,-373.06851059,0.00049489,30]
[322583833,1713084657836,-373.06851059,0.00049489,30]
[322583834,1713084657852,-373.06851059,0.00049489,30]
[322583835,1713084657883,-373.06851059,0.00049489,30]
[322583836,1713084657900,-373.06851059,0.00049489,30]
[322583837,1713084657918,-373.06851059,0.00049489,30]
[322583838,1713084657937,-373.06851059,0.00049489,30]
[322583839,1713084657954,-373.06851059,0.00049489,30]
[322583840,1713084657975,-373.06851059,0.00049489,30]
[322583841,1713084657997,-373.06851059,0.00049489,30]
[322583842,1713084658010,-373.06851059,0.00049489,30]
[322583843,1713084658028,-373.06851059,0.00049489,30]
[322583844,1713084658046,-373.06851059,0.00049489,30]
[322583845,1713084658060,-373.06851059,0.00049489,30]
[322583846,1713084658078,-373.06851059,0.00049489,30]
[322583847,1713084658095,-373.56,0.00049489,30]
[322583848,1713084658110,-1492.34904237,0.00049489,30]
[322583849,1713084658126,-1492.34904237,0.00049489,30]
[322583850,1713084658142,-1492.34904237,0.00049489,30]
[322583851,1713084658158,-157.041416,0.00049498,86]
[322583852,1713084658174,-150.0,0.000495,10]
[322583853,1713084658197,-170.77931922,0.00049518,30]
[322583854,1713084658213,-167.2194752,0.00049526,30]
[322583855,1713084658227,-154.9980197,0.00049572,30]
[322583856,1713084658243,-3186.12862197,0.00049578,30]
[322583857,1713084658258,-1618.07110588,0.00049578,30]
[322583858,1713084658275,-306.35424071,0.00049578,30]
[322583859,1713084658290,-1492.34904237,0.00049578,30]
[322583860,1713084658304,-744262.0684503,0.00049589,61]
[322583861,1713084658318,-500.0,0.00049589,120]
[322583862,1713084658333,-1260.05,0.00049589,120]
[322583863,1713084658359,-1415.01,0.00049589,120]
[322583864,1713084658374,-500.0,0.00049589,120]
[322583865,1713084658389,-552.32658087,0.00049589,120]
[322583866,1713084658403,-500.0,0.00049589,120]
[322583867,1713084658418,-500.0,0.00049589,120]
[322583868,1713084658434,-577.47,0.00049589,120]
[322583869,1713084658449,-519.71,0.00049589,120]
[322583870,1713084658463,-500.0,0.00049589,120]
[322583871,1713084658479,-500.0,0.00049589,120]
[322583872,1713084658496,-939.0,0.00049589,120]
[322583873,1713084658511,-500.0,0.00049589,120]
[322583874,1713084658525,-500.0,0.00049589,120]
[322583875,1713084658540,-2429.88,0.00049589,120]
[322583876,1713084658556,-500.0,0.00049589,120]
[322583877,1713084658572,-500.0,0.00049589,120]
[322583878,1713084658587,-569.33,0.00049589,120]
[322583879,1713084658603,-945.0,0.00049589,120]
[322583880,1713084658617,-1122.64,0.00049589,120]
[322583881,1713084658633,-500.0,0.00049589,2]
[322583882,1713084658647,-500.0,0.00049589,120]
[322583883,1713084658663,-500.0,0.00049589,120]
[322583884,1713084658677,-500.0,0.00049589,120]
[322583885,1713084658692,-500.0,0.00049589,120]
[322583886,1713084658707,-514.56,0.00049589,120]
[322583887,1713084658721,-500.0,0.00049589,120]
[322583888,1713084658736,-854.75,0.00049589,120]
[322583889,1713084658754,-501.06850874,0.00049589,120]
[322583890,1713084658770,-762.26,0.00049589,120]
[322583891,1713084658785,-500.0,0.00049589,120]
[322583892,1713084658800,-2224.23,0.00049589,120]
[322583893,1713084658816,-547.47,0.00049589,120]
[322583894,1713084658831,-500.0,0.00049589,120]
[322583895,1713084658846,-946.09,0.00049589,120]
[322583896,1713084658861,-500.0,0.00049589,120]
[322583897,1713084658876,-1476.74,0.00049589,120]
[322583898,1713084658891,-500.0,0.00049589,120]
[322583899,1713084658907,-500.0,0.00049589,120]
[322583900,1713084658921,-500.0,0.00049589,120]
[322583901,1713084658935,-529.73,0.00049589,120]
[322583902,1713084658950,-500.0,0.00049589,2]
[322583903,1713084658965,-1730.37,0.00049589,120]
[322583904,1713084658985,-842.06,0.00049589,120]
[322583905,1713084659000,-500.0,0.00049589,120]
[322583906,1713084659015,-500.0,0.00049589,120]
[322583907,1713084659031,-155.15709159,0.00049589,120]
[322583908,1713084659046,-500.0,0.00049589,120]
[322583909,1713084659061,-500.0,0.00049589,120]
[322583910,1713084659076,-1056.57,0.00049589,120]
[322583911,1713084659091,-500.0,0.00049589,120]
[322583912,1713084659106,-500.0,0.00049589,120]
[322583913,1713084659122,-912.07,0.00049589,120]
[322583914,1713084659137,-1837.82,0.00049589,120]
[322583915,1713084659152,-500.0,0.00049589,120]
[322583916,1713084659166,-500.0,0.00049589,120]
[322583917,1713084659181,-500.0,0.00049589,120]
[322583918,1713084659196,-540.55959117,0.00049589,120]
[322583919,1713084659211,-500.0,0.00049589,120]
[322583920,1713084659227,-558.97,0.00049589,120]
[322583921,1713084659242,-500.0,0.00049589,120]
[322583922,1713084659256,-500.0,0.00049589,120]
[322583923,1713084659271,-500.0,0.00049589,120]
[322583924,1713084659286,-563.35,0.00049589,120]
[322583925,1713084659300,-500.0,0.00049589,120]
[322583926,1713084659315,-578.07,0.00049589,120]
[322583927,1713084659338,-1056.44,0.00049589,120]
[322583928,1713084659358,-2016.97046781,0.00049589,120]
[322583929,1713084659378,-500.0,0.00049589,120]
[322583930,1713084659397,-500.0,0.00049589,120]
[322583931,1713084659416,-500.0,0.00049589,120]
[322583932,1713084659434,-1193.11,0.00049589,120]
[322583933,1713084659451,-2241.55,0.00049589,120]
[322583934,1713084659469,-2466.53,0.00049589,120]
[322583935,1713084659485,-500.0,0.00049589,120]
[322583936,1713084659504,-696.03,0.00049589,120]
[322583937,1713084659520,-595.91,0.00049589,120]
[322583938,1713084659536,-1851.48,0.00049589,120]
[322583939,1713084659552,-504.65,0.00049589,120]
[322583940,1713084659568,-500.0,0.00049589,120]
[322583941,1713084659583,-1512.37,0.00049589,120]
[322583942,1713084659598,-660.14,0.00049589,120]
[322583943,1713084659614,-498.92518581,0.00049589,120]
[322583944,1713084659629,-1712.82,0.00049589,120]
[322583945,1713084659645,-500.0,0.00049589,120]
[322583946,1713084659660,-500.0,0.00049589,120]
[322583947,1713084659676,-509.84139337,0.00049589,120]
[322583948,1713084659691,-500.0,0.00049589,120]
[322583949,1713084659947,-1244.96,0.00049589,120]
[322583950,1713084659971,-1796.99,0.00049589,120]
[322583951,1713084659983,-908.96,0.00049589,120]
[322583952,1713084659992,-500.0,0.00049589,120]
[322583953,1713084660002,-500.0,0.00049589,120]
[322583954,1713084660012,-678.81,0.00049589,120]
[322583955,1713084660021,-1247.11,0.00049589,120]
[322583956,1713084660030,-500.0,0.00049589,120]
[322583957,1713084660040,-500.0,0.00049589,120]
[322583958,1713084660050,-500.0,0.00049589,120]
[322583959,1713084660060,-500.0,0.00049589,120]
[322583960,1713084660070,-1484.51,0.00049589,120]
[322583961,1713084660080,-500.0,0.00049589,120]
[322583962,1713084660090,-500.0,0.00049589,120]
[322583963,1713084660099,-1329.41,0.00049589,120]
[322583964,1713084660108,-500.0,0.00049589,120]
[322583965,1713084660118,-564.69,0.00049589,120]
[322583966,1713084660127,-500.0,0.00049589,120]
[322583967,1713084660137,-3339.49,0.00049589,120]
[322583968,1713084660145,-500.0,0.00049589,120]
[322583969,1713084660155,-719.4,0.00049589,120]
[322583970,1713084660164,-500.0,0.00049589,120]
[322583971,1713084660174,-1194.35,0.00049589,120]
[322583972,1713084660183,-500.0,0.00049589,120]
[322583973,1713084660192,-500.0,0.00049589,120]
[322583974,1713084660202,-679.83,0.00049589,120]
[322583975,1713084660211,-500.0,0.00049589,120]
[322583976,1713084660220,-1008.05,0.00049589,120]
[322583977,1713084660230,-500.0,0.00049589,120]
[322583978,1713084660239,-2467.15,0.00049589,120]
[322583979,1713084660250,-500.0,0.00049589,120]
[322583980,1713084660259,-588.11,0.00049589,120]
[322583981,1713084660269,-2468.36,0.00049589,120]
[322583982,1713084660279,-500.0,0.00049589,120]
[322583983,1713084660288,-500.0,0.00049589,120]
[322583984,1713084660297,-644.87,0.00049589,120]
[322583985,1713084660307,-634.72,0.00049589,120]
[322583986,1713084660317,-1579.06,0.00049589,120]
[322583987,1713084660326,-500.0,0.00049589,120]
[322583988,1713084660335,-500.0,0.00049589,120]
[322583989,1713084660346,-500.0,0.00049589,120]
[322583990,1713084660355,-1747.02,0.00049589,120]
[322583991,1713084660364,-500.0,0.00049589,120]
[322583992,1713084660373,-500.0,0.00049589,120]
[322583993,1713084660382,-3898.75,0.00049589,120]
[322583994,1713084660391,-465.24971479,0.00049589,120]
[322583995,1713084660401,-500.0,0.00049589,120]
[322583996,1713084660411,-500.0,0.00049589,120]
[322583997,1713084660421,-500.0,0.00049589,120]
[322583998,1713084660431,-500.0,0.00049589,120]
[322583999,1713084660440,-765.87,0.00049589,120]
[322584000,1713084660449,-1412.05,0.00049589,120]
[322584001,1713084660458,-500.0,0.00049589,120]
[322584002,1713084660467,-522.78,0.00049589,120]
[322584003,1713084660476,-500.0,0.00049589,120]
[322584004,1713084660485,-500.0,0.00049589,120]
[322584005,1713084660496,-500.0,0.00049589,120]
[322584006,1713084660505,-2541.97,0.00049589,120]
[322584007,1713084660514,-500.0,0.00049589,120]
[322584008,1713084660523,-590.29,0.00049589,120]
[322584009,1713084660532,-500.0,0.00049589,120]
[322584010,1713084660541,-500.0,0.00049589,120]
[322584011,1713084660550,-500.0,0.00049589,120]
[322584012,1713084660559,-2403.74,0.00049589,120]
[322584013,1713084660568,-2055.71,0.00049589,120]
[322584014,1713084660578,-4632.63,0.00049589,120]
[322584015,1713084660587,-784.32,0.00049589,120]
[322584016,1713084660596,-500.0,0.00049589,120]
[322584017,1713084660605,-500.0,0.00049589,120]
[322584018,1713084660615,-500.0,0.00049589,120]
[322584019,1713084660624,-500.0,0.00049589,120]
[322584020,1713084660633,-831.51,0.00049589,120]
[322584021,1713084660643,-1310.94,0.00049589,120]
[322584022,1713084660652,-633.36,0.00049589,120]
[322584023,1713084660661,-513.58573774,0.00049589,120]
[322584024,1713084660670,-28015.33,0.00049589,120]
[322584025,1713084660680,-3992.29,0.00049589,120]
[322584026,1713084660689,-1441.08,0.00049589,120]
[322584027,1713084660699,-500.0,0.00049589,120]
[322584028,1713084660708,-996.32,0.00049589,120]
[322584029,1713084660717,-519.48303141,0.00049589,120]
[322584030,1713084660727,-500.0,0.00049589,120]
[322584031,1713084660736,-14466.77,0.00049589,120]
[322584032,1713084660747,-514.23953832,0.00049589,120]
[322584033,1713084660757,-571.97,0.00049589,120]
[322584034,1713084660766,-10692.16,0.00049589,120]
[322584035,1713084660775,-2805.09,0.00049589,120]
[322584036,1713084660785,-613.6,0.00049589,120]
[322584037,1713084660794,-500.0,0.00049589,120]
[322584038,1713084660803,-500.0,0.00049589,120]
[322584039,1713084660813,-500.0,0.00049589,120]
[322584040,1713084660822,-500.0,0.00049589,120]
[322584041,1713084660831,-500.0,0.00049589,120]
[322584042,1713084660841,-500.0,0.00049589,120]
[322584043,1713084660850,-500.0,0.00049589,120]
[322584044,1713084660859,-500.0,0.00049589,120]
[322584045,1713084660868,-500.0,0.00049589,120]
[322584046,1713084660877,-500.0,0.00049589,120]
[322584047,1713084660886,-20614.88,0.00049589,120]
[322584048,1713084660895,-500.0,0.00049589,120]
[322584049,1713084660905,-500.0,0.00049589,120]
[322584050,1713084660914,-608.89,0.00049589,120]
[322584051,1713084660923,-7402.03,0.00049589,120]
[322584052,1713084660932,-500.0,0.00049589,120]
[322584053,1713084660942,-2266.94,0.00049589,120]
[322584054,1713084660951,-500.0,0.00049589,120]
[322584055,1713084660960,-500.0,0.00049589,120]
[322584056,1713084660973,-500.0,0.00049589,120]
[322584057,1713084660986,-583.89,0.00049589,120]
[322584058,1713084660996,-1728.26,0.00049589,120]
[322584059,1713084661006,-500.0,0.00049589,120]
[322584060,1713084661016,-19362.17,0.00049589,120]
[322584061,1713084661026,-9547.51,0.00049589,120]
[322584062,1713084661035,-500.0,0.00049589,120]
[322584063,1713084661044,-500.0,0.00049589,120]
[322584064,1713084661054,-500.0,0.00049589,120]
[322584065,1713084661063,-528.57,0.00049589,120]
[322584066,1713084661072,-512.20551308,0.00049589,120]
[322584067,1713084661081,-2977.95,0.00049589,120]
[322584068,1713084661091,-1155.69,0.00049589,120]
[322584069,1713084661100,-2958.77,0.00049589,120]
[322584070,1713084661109,-500.0,0.00049589,120]
[322584071,1713084661119,-500.0,0.00049589,120]
[322584072,1713084661128,-1808.78,0.00049589,120]
[322584073,1713084661138,-500.0,0.00049589,120]
[322584074,1713084661148,-4027.2,0.00049589,120]
[322584075,1713084661158,-500.0,0.00049589,120]
[322584076,1713084661167,-500.0,0.00049589,120]
[322584077,1713084661177,-502.08,0.00049589,120]
[322584078,1713084661187,-5692.67,0.00049589,120]
[322584079,1713084661197,-416.64255813,0.00049589,120]
[322584080,1713084661208,-500.0,0.00049589,120]
[322584081,1713084661218,-500.0,0.00049589,120]
[322584082,1713084661228,-15676.74,0.00049589,120]
[322584083,1713084661238,-1563.79,0.00049589,120]
[322584084,1713084661248,-774.37,0.00049589,120]
[322584085,1713084661258,-3000.0,0.00049589,120]
[322584086,1713084661268,-500.0,0.00049589,120]
[322584087,1713084661277,-592.89,0.00049589,120]
[322584088,1713084661287,-9970.4,0.00049589,120]
[322584089,1713084661297,-4120.8,0.00049589,120]
[322584090,1713084661306,-500.0,0.00049589,120]
[322584091,1713084661316,-500.0,0.00049589,120]
[322584092,1713084661326,-784.9,0.00049589,120]
[322584093,1713084661335,-1056.46,0.00049589,120]
[322584094,1713084661344,-500.0,0.00049589,120]
[322584095,1713084661355,-1371.83,0.00049589,120]
[322584096,1713084661364,-500.0,0.00049589,120]
[322584097,1713084661374,-500.0,0.00049589,120]
[322584098,1713084661383,-9990.74,0.00049589,120]
[322584099,1713084661393,-4398.0,0.00049589,120]
[322584100,1713084661402,-500.0,0.00049589,120]
[322584101,1713084661411,-500.0,0.00049589,120]
[322584102,1713084661421,-2537.48,0.00049589,120]
[322584103,1713084661430,-1560.69,0.00049589,120]
[322584104,1713084661440,-500.0,0.00049589,120]
[322584105,1713084661450,-2789.68,0.00049589,120]
[322584106,1713084661460,-1053.38,0.00049589,120]
[322584107,1713084661469,-500.0,0.00049589,120]
[322584108,1713084661478,-1212.96,0.00049589,120]
[322584109,1713084661488,-500.0,0.00049589,120]
[322584110,1713084661501,-34903.83,0.00049589,120]
[322584111,1713084661510,-500.0,0.00049589,120]
[322584112,1713084661519,-974.3,0.00049589,120]
[322584113,1713084661528,-500.0,0.00049589,120]
[322584114,1713084661538,-500.0,0.00049589,120]
[322584115,1713084661548,-3141.18,0.00049589,120]
[322584116,1713084661558,-500.0,0.00049589,120]
[322584117,1713084661569,-905.38,0.00049589,120]
[322584118,1713084661579,-500.0,0.00049589,120]
[322584119,1713084661588,-1318.05,0.00049589,120]
[322584120,1713084661598,-500.0,0.00049589,120]
[322584121,1713084661607,-28800.97,0.00049589,120]
[322584122,1713084661616,-500.0,0.00049589,120]
[322584123,1713084661626,-3006.74,0.00049589,120]
[322584124,1713084661635,-608.56,0.00049589,120]
[322584125,1713084661644,-500.0,0.00049589,120]
[322584126,1713084661653,-500.0,0.00049589,120]
[322584127,1713084661663,-500.0,0.00049589,120]
[322584128,1713084661673,-2302.43,0.00049589,120]
[322584129,1713084661682,-500.0,0.00049589,120]
[322584130,1713084661691,-500.0,0.00049589,120]
[322584131,1713084661701,-500.0,0.00049589,120]
[322584132,1713084661710,-4649.6,0.00049589,120]
[322584133,1713084661720,-500.0,0.00049589,120]
[322584134,1713084661729,-500.0,0.00049589,120]
[322584135,1713084661750,-500.0,0.00049589,120]
[322584136,1713084661760,-500.0,0.00049589,120]
[322584137,1713084661770,-500.0,0.00049589,120]
[322584138,1713084661780,-500.0,0.00049589,120]
[322584139,1713084661789,-620.09,0.00049589,120]
[322584140,1713084661799,-1548.43,0.00049589,120]
[322584141,1713084661809,-6831.7,0.00049589,120]
[322584142,1713084661819,-500.0,0.00049589,120]
[322584143,1713084661829,-668.55,0.00049589,120]
[322584144,1713084661838,-3365.02,0.00049589,120]
[322584145,1713084661847,-81247.58,0.00049589,120]
[322584146,1713084661857,-4274.53,0.00049589,120]
[322584147,1713084661867,-388.69433551,0.00049589,120]
[322584148,1713084661876,-500.0,0.00049589,120]
[322584149,1713084661885,-1536.79,0.00049589,120]
[322584150,1713084661895,-500.0,0.00049589,120]
[322584151,1713084661904,-500.0,0.00049589,120]
[322584152,1713084661914,-500.0,0.00049589,120]
[322584153,1713084661924,-500.0,0.00049589,120]
[322584154,1713084661933,-500.0,0.00049589,120]
[322584155,1713084661942,-500.0,0.00049589,120]
[322584156,1713084661951,-500.0,0.00049589,120]
[322584157,1713084661961,-2461.8,0.00049589,120]
[322584158,1713084661971,-554.44762238,0.00049589,120]
[322584159,1713084661985,-500.0,0.00049589,120]
[322584160,1713084661994,-500.0,0.00049589,120]
[322584161,1713084662004,-2134.05,0.00049589,120]
[322584162,1713084662014,-282.09391061,0.00049589,120]
[322584163,1713084662023,-500.58165948,0.00049589,120]
[322584164,1713084662033,-5019.46,0.00049589,120]
[322584165,1713084662042,-2671.39,0.00049589,120]
[322584166,1713084662052,-500.0,0.00049589,120]
[322584167,1713084662062,-855.9,0.00049589,120]
[322584168,1713084662072,-889.9,0.00049589,120]
[322584169,1713084662081,-2357.41,0.00049589,120]
[322584170,1713084662091,-500.0,0.00049589,120]
[322584171,1713084662100,-500.0,0.00049589,120]
[322584172,1713084662109,-4794.26,0.00049589,120]